[Event "Vegagatan U1800-B"]
[Site "Goteborgs Schackcentrum, Vegatan 20, Gothenburg, Sweden"]
[Date "2025.05.03"]
[Round "1.1"]
[White "Hernebring, Marten"]
[Black "Olivius, Sten"]
[Result "0-1"]
[TimeControl "30 minutes + 30 seconds per move from move one"]
[WhiteFideId "1776894"]
[BlackFideId "1788728"]
[WhiteElo "1679"]
[BlackElo "1678"]

1. c4 {[%clk 00:30:56]} {[%emt 00:00:03]} e5 {[%clk 00:30:36]} {[%emt
00:00:24]} 2. g3 {[%clk 00:31:14]} {[%emt 00:00:12]} Nc6 {[%clk 00:30:49]}
{[%emt 00:00:17]} 3. Nc3 {[%clk 00:31:34]} {[%emt 00:00:10]} Nf6 {[%clk
00:31:02]} {[%emt 00:00:18]} 4. a3 {[%clk 00:31:29]} {[%emt 00:00:35]} a5
{[%clk 00:30:25]} {[%emt 00:01:07]} 5. Bg2 {[%clk 00:31:29]} {[%emt 00:00:29]}
Bc5 {[%clk 00:30:23]} {[%emt 00:00:32]} 6. e3 {[%clk 00:31:39]} {[%emt
00:00:20]} O-O {[%clk 00:30:27]} {[%emt 00:00:26]} 7. Nge2 {[%clk 00:32:01]}
{[%emt 00:00:08]} d6 {[%clk 00:30:32]} {[%emt 00:00:25]} 8. O-O {[%clk
00:32:11]} {[%emt 00:00:20]} Re8 {[%clk 00:30:00]} {[%emt 00:01:02]} 9. d4
{[%clk 00:31:15]} {[%emt 00:01:27]} exd4 {[%clk 00:29:57]} {[%emt 00:00:31]} 10.
exd4 {[%clk 00:31:38]} {[%emt 00:00:07]} Ba7 {[%clk 00:30:17]} {[%emt
00:00:11]} 11. b3 {[%clk 00:27:33]} {[%emt 00:04:35]} Bg4 {[%clk 00:28:42]}
{[%emt 00:02:06]} 12. h3 {[%clk 00:27:54]} {[%emt 00:00:09]} Bxe2 {[%clk
00:24:47]} {[%emt 00:04:24]} 13. Nxe2 {[%clk 00:28:07]} {[%emt 00:00:17]} Qe7
{[%clk 00:24:52]} {[%emt 00:00:25]} 14. Be3 {[%clk 00:25:19]} {[%emt 00:03:19]}
Rad8 {[%clk 00:24:20]} {[%emt 00:01:02]} 15. Nc3 {[%clk 00:24:17]} {[%emt
00:01:32]} Qd7 {[%clk 00:23:27]} {[%emt 00:01:22]} 16. Kh2 {[%clk 00:20:00]}
{[%emt 00:04:47]} Ne7 {[%clk 00:19:30]} {[%emt 00:04:28]} 17. Bxb7 {[%clk
00:18:49]} {[%emt 00:01:41]} c6 {[%clk 00:19:39]} {[%emt 00:00:20]} 18. Ba6
{[%clk 00:19:09]} {[%emt 00:00:09]} Qc7 {[%clk 00:18:40]} {[%emt 00:01:31]} 19.
b4 {[%clk 00:16:10]} {[%emt 00:03:29]} Nf5 {[%clk 00:18:04]} {[%emt 00:01:06]}
20. Qd2 {[%clk 00:15:31]} {[%emt 00:01:08]} Ne4 {[%clk 00:16:33]} {[%emt
00:02:01]} 21. Nxe4 {[%clk 00:15:37]} {[%emt 00:00:24]} Rxe4 {[%clk 00:16:58]}
{[%emt 00:00:06]} 22. d5 {[%clk 00:11:45]} {[%emt 00:04:22]} Nxe3 {[%clk
00:15:51]} {[%emt 00:01:37]} 23. fxe3 {[%clk 00:11:39]} {[%emt 00:00:35]} Rxe3
{[%clk 00:15:39]} {[%emt 00:00:42]} 24. c5 {[%clk 00:11:48]} {[%emt 00:00:21]}
Rde8 {[%clk 00:15:48]} {[%emt 00:00:21]} 25. dxc6 {[%clk 00:11:07]} {[%emt
00:01:11]} dxc5 {[%clk 00:15:55]} {[%emt 00:00:23]} 26. Qd7 {[%clk 00:11:08]}
{[%emt 00:00:29]} Qxg3+ {[%clk 00:16:10]} {[%emt 00:00:15]} 27. Kh1 {[%clk
00:11:13]} {[%emt 00:00:25]} Qg6 {[%clk 00:14:00]} {[%emt 00:02:40]} 28. Bd3
{[%clk 00:06:30]} {[%emt 00:05:14]} Qh5 {[%clk 00:12:52]} {[%emt 00:01:38]} 29.
Bxh7+ {[%clk 00:04:40]} {[%emt 00:02:20]} Kxh7 {[%clk 00:12:40]} {[%emt
00:00:42]} 30. Qf5+ {[%clk 00:03:23]} {[%emt 00:01:46]} Qxf5 {[%clk 00:12:56]}
{[%emt 00:00:14]} 31. Rxf5 {[%clk 00:03:49]} {[%emt 00:00:04]} Kg6 {[%clk
00:12:01]} {[%emt 00:01:26]} 32. Raf1 {[%clk 00:04:03]} {[%emt 00:00:15]} R8e7
{[%clk 00:11:07]} {[%emt 00:01:24]} 33. h4 {[%clk 00:03:27]} {[%emt 00:01:06]}
Rh3+ {[%clk 00:10:54]} {[%emt 00:00:43]} 34. Kg2 {[%clk 00:03:49]} {[%emt
00:00:08]} Rxh4 {[%clk 00:11:11]} {[%emt 00:00:14]} 35. bxc5 {[%clk 00:03:30]}
{[%emt 00:00:48]} Rc4 {[%clk 00:10:48]} {[%emt 00:00:52]} 36. Rd5 {[%clk
00:02:22]} {[%emt 00:01:40]} Bxc5 {[%clk 00:09:40]} {[%emt 00:01:37]} 37. Rd7
{[%clk 00:02:42]} {[%emt 00:00:10]} Rxd7 {[%clk 00:09:16]} {[%emt 00:00:55]} 38.
cxd7 {[%clk 00:03:05]} {[%emt 00:00:07]} Rd4 {[%clk 00:09:40]} {[%emt
00:00:06]} 39. Rc1 {[%clk 00:03:25]} {[%emt 00:00:09]} Bxa3 {[%clk 00:09:28]}
{[%emt 00:00:43]} 40. Rc7 {[%clk 00:02:41]} {[%emt 00:01:14]} Kf6 {[%clk
00:09:37]} {[%emt 00:00:21]} 41. Ra7 {[%clk 00:02:56]} {[%emt 00:00:15]} Bb4
{[%clk 00:09:41]} {[%emt 00:00:24]} 42. Kf3 {[%clk 00:01:43]} {[%emt 00:01:44]}
Ke6 {[%clk 00:09:41]} {[%emt 00:00:29]} 43. Ke3 {[%emt 00:01:22]} Rxd7 {[%clk
00:09:54]} 44. Ra6+ {[%clk 00:01:19]} {[%emt 00:00:20]} Rd6 {[%clk 00:10:13]}
{[%emt 00:00:10]} 45. Ra7 {[%clk 00:01:39]} {[%emt 00:00:10]} Bc5+ {[%clk
00:10:37]} 0-1

[Event "Vegagatan U1800-B"]
[Site "Goteborgs Schackcentrum, Vegatan 20, Gothenburg, Sweden"]
[Date "2025.05.03"]
[Round "1.2"]
[White "Hemmerling, Martin"]
[Black "Hassinge, Ove"]
[Result "1-0"]
[TimeControl "30 minutes + 30 seconds per move from move one"]
[WhiteFideId "1795724"]
[BlackFideId "1774530"]
[WhiteElo "1788"]
[BlackElo "1652"]

1. d4 {[%clk 00:30:30]} {[%emt 00:17:07]} Nf6 {[%clk 00:30:30]} {[%emt
00:00:08]} 2. Nc3 {[%clk 00:30:30]} {[%emt 00:00:06]} d5 {[%clk 00:30:48]}
{[%emt 00:00:23]} 3. Bf4 {[%clk 00:30:55]} {[%emt 00:00:05]} c5 {[%clk
00:31:03]} {[%emt 00:00:15]} 4. e3 {[%clk 00:31:10]} {[%emt 00:00:15]} cxd4
{[%clk 00:31:05]} {[%emt 00:00:28]} 5. exd4 {[%clk 00:31:32]} {[%emt 00:00:08]}
a6 {[%clk 00:31:00]} {[%emt 00:00:35]} 6. Bd3 {[%clk 00:31:14]} {[%emt
00:00:48]} Nc6 {[%clk 00:30:45]} {[%emt 00:00:45]} 7. Nce2 {[%clk 00:28:03]}
{[%emt 00:03:41]} Nb4 {[%clk 00:29:56]} {[%emt 00:01:19]} 8. Nf3 {[%clk
00:27:19]} {[%emt 00:01:13]} Nxd3+ {[%clk 00:28:50]} {[%emt 00:01:37]} 9. Qxd3
{[%clk 00:27:30]} {[%emt 00:00:18]} e6 {[%clk 00:27:21]} {[%emt 00:02:00]} 10.
Ne5 {[%clk 00:26:43]} {[%emt 00:01:17]} Be7 {[%clk 00:26:08]} {[%emt 00:01:43]}
11. h4 {[%clk 00:25:35]} {[%emt 00:01:36]} Qb6 {[%clk 00:23:30]} {[%emt
00:03:09]} 12. O-O-O {[%clk 00:25:21]} {[%emt 00:00:44]} Ne4 {[%clk 00:22:26]}
{[%emt 00:01:35]} 13. f3 {[%clk 00:25:06]} {[%emt 00:00:45]} Nf2 {[%clk
00:22:34]} {[%emt 00:00:22]} 14. Qe3 {[%clk 00:24:58]} {[%emt 00:00:38]} Nxd1
{[%clk 00:22:26]} {[%emt 00:00:38]} 15. Rxd1 {[%clk 00:25:16]} {[%emt
00:00:11]} Bxh4 {[%clk 00:21:02]} {[%emt 00:01:54]} 16. Rh1 {[%clk 00:25:26]}
{[%emt 00:00:20]} Bf6 {[%clk 00:20:46]} {[%emt 00:00:47]} 17. g4 {[%clk
00:25:31]} {[%emt 00:00:25]} Bxe5 {[%clk 00:19:12]} {[%emt 00:02:04]} 18. Bxe5
{[%clk 00:24:04]} {[%emt 00:01:57]} f6 {[%clk 00:18:52]} {[%emt 00:00:50]} 19.
Bg3 {[%clk 00:24:03]} {[%emt 00:00:30]} Kf7 {[%clk 00:17:16]} {[%emt 00:02:07]}
20. g5 {[%clk 00:23:26]} {[%emt 00:01:07]} Bd7 {[%clk 00:15:55]} {[%emt
00:01:51]} 21. Qf4 {[%clk 00:14:06]} {[%emt 00:09:49]} Rac8 {[%clk 00:13:50]}
{[%emt 00:02:36]} 22. gxf6 {[%clk 00:13:30]} {[%emt 00:01:06]} g6 {[%clk
00:11:40]} {[%emt 00:02:40]} 23. Qh6 {[%clk 00:09:53]} {[%emt 00:04:07]} Rcg8
{[%clk 00:11:50]} {[%emt 00:00:20]} 24. Be5 {[%clk 00:10:02]} {[%emt 00:00:21]}
Qd8 {[%clk 00:10:54]} {[%emt 00:01:26]} 25. Nf4 {[%clk 00:09:34]} {[%emt
00:00:58]} g5 {[%clk 00:09:46]} {[%emt 00:01:38]} 26. Qh5+ {[%clk 00:08:19]}
{[%emt 00:01:45]} Kf8 {[%clk 00:08:57]} {[%emt 00:01:19]} 27. Ng6+ {[%clk
00:07:25]} {[%emt 00:01:23]} Rxg6 {[%clk 00:07:58]} {[%emt 00:01:30]} 28. Qxg6
{[%clk 00:07:43]} {[%emt 00:00:08]} Rg8 {[%clk 00:06:49]} {[%emt 00:01:43]} 29.
Qxh7 {[%clk 00:07:23]} {[%emt 00:00:50]} Qe8 {[%clk 00:04:41]} {[%emt
00:02:38]} 30. Qh6+ {[%clk 00:06:03]} {[%emt 00:01:49]} Kf7 {[%clk 00:04:56]}
{[%emt 00:00:16]} 31. Qh5+ {[%clk 00:06:19]} {[%emt 00:00:13]} Kf8 {[%clk
00:05:15]} {[%emt 00:00:12]} 32. Qxe8+ {[%clk 00:06:28]} {[%emt 00:00:07]} Bxe8
{[%clk 00:05:37]} {[%emt 00:00:22]} 33. Rh7 {[%clk 00:06:18]} {[%emt 00:00:39]}
Bf7 {[%clk 00:05:51]} {[%emt 00:00:17]} 34. Rg7 {[%clk 00:06:18]} {[%emt
00:00:29]} Bh5 {[%clk 00:02:05]} {[%emt 00:04:17]} 35. Bd6+ {[%clk 00:06:19]}
{[%emt 00:00:29]} 1-0

[Event "Vegagatan U1800-B"]
[Site "Goteborgs Schackcentrum, Vegatan 20, Gothenburg, Sweden"]
[Date "2025.05.03"]
[Round "1.3"]
[White "Kadyr, Mustafa"]
[Black "Bjureblad, Martin"]
[Result "0-1"]
[TimeControl "30 minutes + 30 seconds per move from move one"]
[WhiteFideId "1772147"]
[BlackFideId "1717928"]
[WhiteElo "1686"]
[BlackElo "1645"]

1. e4 {[%clk 00:30:43]} {[%emt 00:00:16]} c5 {[%clk 00:30:46]} {[%emt
00:00:14]} 2. c3 {[%clk 00:30:55]} {[%emt 00:00:18]} Nc6 {[%clk 00:30:28]}
{[%emt 00:00:48]} 3. d4 {[%clk 00:31:02]} {[%emt 00:00:23]} cxd4 {[%clk
00:30:51]} {[%emt 00:00:07]} 4. cxd4 {[%clk 00:31:29]} {[%emt 00:00:03]} d5
{[%clk 00:31:11]} {[%emt 00:00:10]} 5. exd5 {[%clk 00:31:33]} {[%emt 00:00:26]}
Qxd5 {[%clk 00:31:23]} {[%emt 00:00:17]} 6. Nf3 {[%clk 00:31:53]} {[%emt
00:00:11]} e6 {[%clk 00:31:24]} {[%emt 00:00:29]} 7. Nc3 {[%clk 00:30:08]}
{[%emt 00:02:16]} Bb4 {[%clk 00:31:27]} {[%emt 00:00:24]} 8. Bd2 {[%clk
00:30:29]} {[%emt 00:00:09]} Qa5 {[%clk 00:30:48]} {[%emt 00:01:10]} 9. a3
{[%clk 00:29:57]} {[%emt 00:01:03]} Bxc3 {[%clk 00:29:36]} {[%emt 00:01:42]} 10.
Bxc3 {[%clk 00:30:21]} {[%emt 00:00:06]} Qh5 {[%clk 00:29:24]} {[%emt
00:00:42]} 11. Be2 {[%clk 00:29:27]} {[%emt 00:01:23]} Qg4 {[%clk 00:29:19]}
{[%emt 00:00:34]} 12. O-O {[%clk 00:29:23]} {[%emt 00:00:36]} Nf6 {[%clk
00:27:18]} {[%emt 00:02:31]} 13. h3 {[%clk 00:28:59]} {[%emt 00:00:55]} Qe4
{[%clk 00:27:01]} {[%emt 00:00:44]} 14. Re1 {[%clk 00:28:18]} {[%emt 00:01:13]}
Qd5 {[%clk 00:26:53]} {[%emt 00:00:33]} 15. Ne5 {[%clk 00:27:21]} {[%emt
00:01:33]} O-O {[%clk 00:26:18]} {[%emt 00:01:04]} 16. Bc4 {[%clk 00:27:42]}
{[%emt 00:00:08]} Qd6 {[%clk 00:25:16]} {[%emt 00:01:30]} 17. Rc1 {[%clk
00:23:07]} {[%emt 00:05:08]} a6 {[%clk 00:24:46]} {[%emt 00:01:00]} 18. Bb3
{[%clk 00:23:07]} {[%emt 00:00:29]} Rd8 {[%clk 00:24:28]} {[%emt 00:00:47]} 19.
Nxc6 {[%clk 00:21:46]} {[%emt 00:01:53]} bxc6 {[%clk 00:23:40]} {[%emt
00:01:18]} 20. Qf3 {[%clk 00:19:06]} {[%emt 00:03:10]} Rb8 {[%clk 00:23:16]}
{[%emt 00:00:53]} 21. Ba2 {[%emt 00:03:18]} Rb5 {[%clk 00:22:18]} 22. Bb4
{[%clk 00:17:12]} {[%emt 00:01:05]} Qxd4 {[%clk 00:16:49]} {[%emt 00:05:58]} 23.
Bc3 {[%clk 00:17:10]} {[%emt 00:00:33]} Qh4 {[%clk 00:16:14]} {[%emt 00:01:04]}
24. Qxc6 {[%clk 00:16:07]} {[%emt 00:01:34]} Rg5 {[%clk 00:14:32]} {[%emt
00:02:10]} 25. Bxf6 {[%clk 00:15:39]} {[%emt 00:00:59]} gxf6 {[%clk 00:14:32]}
{[%emt 00:00:30]} 26. Qc3 {[%clk 00:15:59]} {[%emt 00:00:10]} Bb7 {[%clk
00:14:01]} {[%emt 00:01:00]} 27. g4 {[%clk 00:14:31]} {[%emt 00:02:00]} Rxg4+
{[%clk 00:13:09]} {[%emt 00:01:21]} 28. Kf1 {[%clk 00:12:47]} {[%emt 00:02:15]}
Bg2+ {[%clk 00:13:01]} {[%emt 00:00:38]} 0-1

[Event "Vegagatan U1800-B"]
[Site "Goteborgs Schackcentrum, Vegatan 20, Gothenburg, Sweden"]
[Date "2025.05.03"]
[Round "1.4"]
[White "Zein, Khalil"]
[Black "Vairav, Vihaan"]
[Result "1-0"]
[TimeControl "30 minutes + 30 seconds per move from move one"]
[WhiteFideId "1776118"]
[BlackFideId "1783971"]
[WhiteElo "1656"]
[BlackElo "1666"]

1. e4 {[%clk 00:30:40]} {[%emt 00:00:20]} c5 {[%clk 00:30:54]} {[%emt
00:00:06]} 2. Nf3 {[%clk 00:31:00]} {[%emt 00:00:10]} Nc6 {[%clk 00:31:23]}
{[%emt 00:00:01]} 3. c3 {[%clk 00:30:51]} {[%emt 00:00:40]} e6 {[%clk
00:31:29]} {[%emt 00:00:23]} 4. d4 {[%clk 00:30:05]} {[%emt 00:01:16]} d5
{[%clk 00:31:17]} {[%emt 00:00:42]} 5. e5 {[%clk 00:29:25]} {[%emt 00:01:10]}
cxd4 {[%clk 00:31:14]} {[%emt 00:00:33]} 6. Nxd4 {[%clk 00:29:16]} {[%emt
00:00:39]} Nxe5 {[%clk 00:31:33]} {[%emt 00:00:11]} 7. Qh5 {[%clk 00:29:22]}
{[%emt 00:00:23]} Ng6 {[%clk 00:30:07]} {[%emt 00:01:58]} 8. Bb5+ {[%clk
00:29:41]} {[%emt 00:00:11]} Bd7 {[%clk 00:30:02]} {[%emt 00:00:36]} 9. Bxd7+
{[%clk 00:29:58]} {[%emt 00:00:13]} Qxd7 {[%clk 00:30:17]} {[%emt 00:00:14]} 10.
O-O {[%clk 00:30:05]} {[%emt 00:00:22]} Nf6 {[%clk 00:30:36]} {[%emt 00:00:11]}
11. Qe2 {[%clk 00:29:51]} {[%emt 00:00:43]} Bc5 {[%clk 00:30:12]} {[%emt
00:00:54]} 12. f4 {[%clk 00:29:33]} {[%emt 00:00:49]} Bxd4+ {[%clk 00:29:11]}
{[%emt 00:01:31]} 13. cxd4 {[%clk 00:30:00]} {[%emt 00:00:03]} O-O {[%clk
00:28:28]} {[%emt 00:01:13]} 14. f5 {[%clk 00:30:30]} exf5 {[%clk 00:28:42]}
{[%emt 00:00:17]} 15. Qf2 {[%clk 00:29:22]} {[%emt 00:01:37]} Rac8 {[%clk
00:28:51]} {[%emt 00:00:22]} 16. Nc3 {[%clk 00:29:41]} {[%emt 00:00:10]} Ne4
{[%clk 00:28:43]} {[%emt 00:00:38]} 17. Qxf5 {[%clk 00:30:08]} {[%emt
00:00:04]} Qxf5 {[%clk 00:28:58]} {[%emt 00:00:15]} 18. Rxf5 {[%clk 00:30:11]}
{[%emt 00:00:26]} Nxc3 {[%clk 00:29:07]} {[%emt 00:00:21]} 19. bxc3 {[%clk
00:30:37]} {[%emt 00:00:04]} Ne7 {[%clk 00:29:23]} {[%emt 00:00:09]} 20. Re5
{[%clk 00:30:59]} {[%emt 00:00:14]} Rfe8 {[%clk 00:29:03]} {[%emt 00:00:49]} 21.
Ba3 {[%clk 00:31:26]} {[%emt 00:00:03]} Ng6 {[%clk 00:28:58]} {[%emt 00:00:34]}
22. Rxd5 {[%clk 00:29:47]} {[%emt 00:02:11]} Rxc3 {[%clk 00:29:20]} {[%emt
00:00:07]} 23. Bb4 {[%clk 00:29:41]} {[%emt 00:00:35]} Rcc8 {[%clk 00:29:03]}
{[%emt 00:00:47]} 24. Rd7 {[%clk 00:30:04]} {[%emt 00:00:08]} Red8 {[%clk
00:27:22]} {[%emt 00:02:11]} 25. Rxb7 {[%clk 00:29:48]} {[%emt 00:00:47]} Rxd4
{[%clk 00:27:34]} {[%emt 00:00:17]} 26. Rf1 {[%clk 00:30:04]} {[%emt 00:00:15]}
f6 {[%clk 00:25:26]} {[%emt 00:02:37]} 27. a3 {[%clk 00:30:06]} {[%emt
00:00:28]} Ra8 {[%clk 00:22:34]} {[%emt 00:03:22]} 28. Rc1 {[%clk 00:30:08]}
{[%emt 00:00:28]} Nf4 {[%clk 00:21:44]} {[%emt 00:01:20]} 29. Rcc7 {[%clk
00:30:31]} {[%emt 00:00:07]} Nd5 {[%clk 00:20:55]} {[%emt 00:01:19]} 30. Rxg7+
{[%clk 00:30:57]} {[%emt 00:00:05]} 1-0

[Event "Vegagatan U1800-B"]
[Site "Goteborgs Schackcentrum, Vegatan 20, Gothenburg, Sweden"]
[Date "2025.05.03"]
[Round "2.1"]
[White "Hassinge, Ove"]
[Black "Hernebring, Marten"]
[Result "0-1"]
[TimeControl "30 minutes + 30 seconds per move from move one"]
[WhiteFideId "1774530"]
[BlackFideId "1776894"]
[WhiteElo "1652"]
[BlackElo "1679"]

1. e4 {[%clk 00:30:56]} {[%emt 00:00:03]} e5 {[%clk 00:30:57]} {[%emt
00:00:04]} 2. Nf3 {[%clk 00:31:17]} {[%emt 00:00:08]} Nc6 {[%clk 00:31:23]}
{[%emt 00:00:05]} 3. Bc4 {[%clk 00:31:41]} {[%emt 00:00:06]} Nf6 {[%clk
00:31:46]} {[%emt 00:00:07]} 4. Ng5 {[%clk 00:31:49]} {[%emt 00:00:22]} d5
{[%clk 00:32:00]} {[%emt 00:00:16]} 5. exd5 {[%clk 00:32:11]} {[%emt 00:00:08]}
Na5 {[%clk 00:32:25]} {[%emt 00:00:06]} 6. Bb5+ {[%clk 00:32:30]} {[%emt
00:00:10]} c6 {[%clk 00:32:47]} {[%emt 00:00:08]} 7. dxc6 {[%clk 00:32:54]}
{[%emt 00:00:07]} bxc6 {[%clk 00:33:10]} {[%emt 00:00:06]} 8. Bd3 {[%clk
00:33:16]} {[%emt 00:00:07]} Nd5 {[%clk 00:33:27]} {[%emt 00:00:14]} 9. h4
{[%clk 00:32:30]} {[%emt 00:01:16]} Nf4 {[%clk 00:33:23]} {[%emt 00:00:34]} 10.
Bf1 {[%clk 00:31:44]} {[%emt 00:01:16]} h6 {[%clk 00:30:00]} {[%emt 00:03:53]}
11. Ne4 {[%clk 00:30:28]} {[%emt 00:01:46]} Nb7 {[%clk 00:27:15]} {[%emt
00:03:14]} 12. d3 {[%clk 00:29:36]} {[%emt 00:01:22]} Ne6 {[%clk 00:24:00]}
{[%emt 00:03:46]} 13. Nbc3 {[%clk 00:28:07]} {[%emt 00:01:59]} Nbc5 {[%clk
00:23:29]} {[%emt 00:01:01]} 14. Be3 {[%clk 00:27:04]} {[%emt 00:01:33]} Nxe4
{[%clk 00:21:23]} {[%emt 00:02:36]} 15. dxe4 {[%clk 00:26:54]} {[%emt
00:00:40]} Bb7 {[%clk 00:21:08]} {[%emt 00:00:45]} 16. Bc4 {[%clk 00:23:02]}
{[%emt 00:04:22]} Bb4 {[%clk 00:20:48]} {[%emt 00:00:50]} 17. Qxd8+ {[%clk
00:20:37]} {[%emt 00:02:55]} Kxd8 {[%clk 00:20:45]} {[%emt 00:00:32]} 18.
O-O-O+ {[%clk 00:17:32]} {[%emt 00:03:36]} Kc7 {[%clk 00:21:09]} {[%emt
00:00:06]} 19. Ne2 {[%clk 00:16:16]} {[%emt 00:01:46]} Rhe8 {[%clk 00:18:10]}
{[%emt 00:03:29]} 20. c3 {[%clk 00:15:19]} {[%emt 00:01:26]} Ba5 {[%clk
00:18:34]} {[%emt 00:00:07]} 21. Rd3 {[%clk 00:13:45]} {[%emt 00:02:04]} Bb6
{[%clk 00:18:35]} {[%emt 00:00:29]} 22. Bxb6+ {[%clk 00:12:04]} {[%emt
00:02:11]} axb6 {[%clk 00:18:57]} {[%emt 00:00:08]} 23. Rhd1 {[%clk 00:12:24]}
{[%emt 00:00:10]} Nc5 {[%clk 00:18:44]} {[%emt 00:00:43]} 24. R3d2 {[%clk
00:11:14]} {[%emt 00:01:40]} Re7 {[%clk 00:18:53]} {[%emt 00:00:21]} 25. f3
{[%clk 00:11:20]} {[%emt 00:00:24]} b5 {[%clk 00:18:17]} {[%emt 00:01:06]} 26.
Bb3 {[%clk 00:10:46]} {[%emt 00:01:04]} Nxb3+ {[%clk 00:18:15]} {[%emt
00:00:31]} 27. axb3 {[%clk 00:11:09]} {[%emt 00:00:08]} c5 {[%clk 00:18:15]}
{[%emt 00:00:30]} 28. Kc2 {[%clk 00:10:02]} {[%emt 00:01:37]} Ra6 {[%clk
00:18:27]} {[%emt 00:00:18]} 29. Ng3 {[%clk 00:09:49]} {[%emt 00:00:43]} g6
{[%clk 00:18:00]} {[%emt 00:00:58]} 30. Nf1 {[%clk 00:09:54]} {[%emt 00:00:24]}
f5 {[%clk 00:18:17]} {[%emt 00:00:12]} 31. exf5 {[%clk 00:09:33]} {[%emt
00:00:51]} gxf5 {[%clk 00:18:37]} {[%emt 00:00:11]} 32. Ne3 {[%clk 00:09:47]}
{[%emt 00:00:16]} f4 {[%clk 00:17:40]} {[%emt 00:01:26]} 33. Nd5+ {[%clk
00:09:44]} {[%emt 00:00:34]} Bxd5 {[%clk 00:18:01]} {[%emt 00:00:09]} 34. Rxd5
{[%clk 00:10:09]} {[%emt 00:00:05]} Rc6 {[%clk 00:18:14]} {[%emt 00:00:17]} 35.
Re1 {[%clk 00:10:12]} {[%emt 00:00:27]} Rg6 {[%clk 00:13:21]} {[%emt 00:05:23]}
36. Re2 {[%clk 00:09:26]} {[%emt 00:01:16]} Kc6 {[%clk 00:13:35]} {[%emt
00:00:15]} 37. Rdxe5 {[%clk 00:09:01]} {[%emt 00:00:56]} Rxe5 {[%clk 00:13:53]}
{[%emt 00:00:12]} 38. Rxe5 {[%clk 00:09:24]} {[%emt 00:00:06]} Rxg2+ {[%clk
00:14:18]} {[%emt 00:00:05]} 39. Kd3 {[%clk 00:09:28]} {[%emt 00:00:27]} Rxb2
{[%clk 00:14:20]} {[%emt 00:00:28]} 40. Re6+ {[%clk 00:08:41]} {[%emt
00:01:17]} Kd5 {[%clk 00:14:41]} {[%emt 00:00:08]} 41. Rxh6 {[%clk 00:09:04]}
{[%emt 00:00:07]} Rxb3 {[%clk 00:15:01]} {[%emt 00:00:11]} 42. Rh5+ {[%clk
00:09:04]} {[%emt 00:00:30]} Kd6 {[%clk 00:14:13]} {[%emt 00:01:18]} 43. Kc2
{[%clk 00:09:20]} {[%emt 00:00:14]} Ra3 {[%clk 00:13:56]} {[%emt 00:00:47]} 44.
Kb2 {[%clk 00:08:56]} {[%emt 00:00:54]} b4 {[%clk 00:14:09]} {[%emt 00:00:17]}
45. Rg5 {[%clk 00:08:22]} {[%emt 00:01:04]} Rxc3 {[%clk 00:14:11]} {[%emt
00:00:27]} 46. h5 {[%clk 00:08:12]} {[%emt 00:00:41]} Rxf3 {[%clk 00:14:31]}
{[%emt 00:00:10]} 47. h6 {[%clk 00:08:29]} {[%emt 00:00:13]} Rh3 {[%clk
00:14:49]} {[%emt 00:00:12]} 48. Rf5 {[%clk 00:07:51]} {[%emt 00:01:08]} Rxh6
{[%clk 00:14:30]} {[%emt 00:00:49]} 49. Rxf4 {[%clk 00:08:14]} {[%emt
00:00:06]} Rh3 {[%clk 00:14:37]} {[%emt 00:00:24]} 50. Rf5 {[%clk 00:08:13]}
{[%emt 00:00:31]} Kc6 {[%clk 00:14:50]} {[%emt 00:00:16]} 51. Rf8 {[%clk
00:08:25]} {[%emt 00:00:19]} Kb5 {[%clk 00:14:14]} {[%emt 00:01:06]} 52. Rf5
{[%clk 00:08:09]} {[%emt 00:00:46]} Rd3 {[%clk 00:13:37]} {[%emt 00:01:07]} 53.
Rh5 {[%clk 00:07:58]} {[%emt 00:00:41]} Kc4 {[%clk 00:13:09]} {[%emt 00:00:58]}
54. Rh4+ {[%clk 00:07:41]} {[%emt 00:00:47]} Rd4 {[%clk 00:13:32]} {[%emt
00:00:07]} 55. Rh5 {[%clk 00:07:59]} {[%emt 00:00:11]} Rd2+ {[%clk 00:13:53]}
{[%emt 00:00:08]} 56. Kc1 {[%clk 00:08:06]} {[%emt 00:00:24]} Rd5 {[%clk
00:13:15]} {[%emt 00:01:08]} 57. Rh4+ {[%clk 00:08:21]} {[%emt 00:00:16]} Kb5
{[%clk 00:13:36]} {[%emt 00:00:09]} 58. Kc2 {[%clk 00:08:14]} {[%emt 00:00:37]}
c4 {[%clk 00:13:53]} {[%emt 00:00:13]} 59. Rg4 {[%clk 00:08:22]} {[%emt
00:00:22]} b3+ {[%clk 00:13:25]} {[%emt 00:00:57]} 60. Kb2 {[%clk 00:08:20]}
{[%emt 00:00:32]} Rd2+ {[%clk 00:13:08]} {[%emt 00:00:47]} 61. Kc1 {[%clk
00:05:14]} {[%emt 00:03:36]} Rc2+ {[%clk 00:13:23]} {[%emt 00:00:15]} 62. Kb1
{[%clk 00:05:27]} {[%emt 00:00:18]} Kb4 {[%clk 00:12:58]} {[%emt 00:00:54]} 63.
Rh4 {[%clk 00:04:39]} {[%emt 00:01:19]} Rd2 {[%clk 00:12:22]} {[%emt 00:01:06]}
64. Rg4 {[%clk 00:02:32]} {[%emt 00:02:36]} Kc3 {[%clk 00:12:24]} {[%emt
00:00:28]} 65. Rg3+ {[%clk 00:02:19]} {[%emt 00:00:44]} Rd3 {[%clk 00:12:44]}
{[%emt 00:00:10]} 66. Rg1 {[%clk 00:02:17]} {[%emt 00:00:32]} Rh3 {[%clk
00:12:22]} {[%emt 00:00:52]} 67. Rc1+ {[%clk 00:02:28]} {[%emt 00:00:19]} Kb4
{[%clk 00:12:19]} {[%emt 00:00:33]} 68. Rg1 {[%clk 00:02:28]} {[%emt 00:00:29]}
c3 {[%clk 00:12:10]} {[%emt 00:00:39]} 69. Rf1 {[%clk 00:01:17]} {[%emt
00:01:42]} Ka3 {[%clk 00:10:57]} {[%emt 00:01:44]} 70. Rc1 {[%clk 00:00:46]}
{[%emt 00:01:00]} c2+ {[%clk 00:10:32]} {[%emt 00:00:54]} 0-1